bitfinex/quotes_SOLUSD_20240713
["timestamp","ask_amount","ask_price","bid_price","bid_amount"]
[1720835408551,16.5265,139.59,139.48,20.0]
[1720835408552,27.9465,139.59,139.54,11.42]
[1720835408852,27.9465,139.59,139.53,11.42]
[1720835410245,27.9465,139.59,139.54,11.42]
[1720835411848,27.9465,139.59,139.53,11.42]
[1720835414152,27.9465,139.59,139.48,20.0]
[1720835414355,11.42,139.58,139.53,11.42]
[1720835414734,27.9465,139.59,139.53,11.42]
[1720835415254,11.42,139.58,139.53,11.42]
[1720835416446,16.5265,139.59,139.53,11.42]
[1720835416656,11.42,139.58,139.53,11.42]
[1720835416956,27.9465,139.59,139.54,11.42]
[1720835419248,27.9465,139.59,139.53,11.42]
[1720835427743,27.9465,139.59,139.54,11.42]
[1720835428159,16.5265,139.59,139.54,11.42]
[1720835428363,16.5265,139.59,139.55,11.42]
[1720835428546,16.5265,139.59,139.56,11.42]
[1720835428759,16.5265,139.59,139.58,11.42]
[1720835430275,22.1774,139.63,139.58,11.42]
[1720835430449,22.1774,139.63,139.6,11.42]
[1720835433861,22.1774,139.63,139.59,11.42]
[1720835434176,22.1774,139.63,139.52,45.68]
[1720835434483,22.1774,139.63,139.58,11.42]
[1720835435063,33.5974,139.63,139.58,11.42]
[1720835436559,33.5974,139.63,139.57,11.42]
[1720835437274,33.5974,139.63,139.58,11.42]
[1720835438063,22.1774,139.63,139.59,11.42]
[1720835440362,22.1774,139.63,139.53,45.0]
[1720835440562,22.1774,139.63,139.58,11.42]
[1720835441183,33.5974,139.63,139.58,11.42]
[1720835441383,22.1774,139.63,139.58,11.42]
[1720835443685,22.1774,139.63,139.53,45.0]
[1720835443886,22.1774,139.63,139.58,11.42]
[1720835445468,22.1774,139.63,139.59,11.42]
[1720835448189,22.1774,139.63,139.58,11.42]
[1720835450470,22.1774,139.63,139.59,11.42]
[1720835453377,22.1774,139.63,139.58,11.42]
[1720835455508,22.1774,139.63,139.59,12.31115458]
[1720835455806,22.1774,139.63,139.6,0.89044119]
[1720835456212,22.1774,139.63,139.6,12.31044119]
[1720835456912,22.1774,139.63,139.61,12.40853837]
[1720835457103,15.9311,139.63,139.61,11.42]
[1720835457406,21.3331,139.66,139.56,15.2289]
[1720835457712,21.3331,139.66,139.63,11.42]
[1720835458206,21.3331,139.66,139.64,11.42]
[1720835458793,21.3331,139.66,139.57,45.0]
[1720835458999,21.3331,139.66,139.63,11.42]
[1720835460607,21.3331,139.66,139.64,11.42]
[1720835460800,21.3331,139.66,139.6,11.42]
[1720835460801,15.212,139.66,139.65,11.42]
[1720835461106,16.0236,139.69,139.65,11.42]
[1720835461302,16.0236,139.69,139.67,11.42]
[1720835462289,16.0236,139.69,139.66,11.42]
[1720835462493,16.0236,139.69,139.65,11.42]
[1720835462805,16.0236,139.69,139.64,11.42]
[1720835463001,16.0236,139.69,139.65,11.42]
[1720835464312,16.0236,139.69,139.61,1.4320483]
[1720835464626,11.42,139.68,139.62,11.42]
[1720835465014,16.0236,139.69,139.56,21.8423]
[1720835465015,11.42,139.67,139.56,21.8423]
[1720835465232,11.42,139.67,139.62,11.42]
[1720835465428,11.42,139.68,139.62,11.42]
[1720835466428,16.0236,139.67,139.62,11.42]
[1720835466620,27.4436,139.67,139.61,11.42]
[1720835467547,16.0236,139.67,139.62,11.42]
[1720835469118,27.4436,139.67,139.61,11.42]
[1720835469835,27.4436,139.67,139.62,11.42]
[1720835471631,16.0236,139.67,139.62,11.42]
[1720835472822,16.0236,139.67,139.56,21.8423]
[1720835473022,27.4436,139.67,139.62,11.42]
[1720835473427,27.4436,139.67,139.61,11.42]
[1720835474545,27.4436,139.67,139.62,11.42]
[1720835477435,16.0236,139.67,139.62,11.42]
[1720835478222,16.0236,139.67,139.63,11.42]
[1720835478822,16.0236,139.67,139.62,11.42]
[1720835479331,27.4436,139.67,139.62,11.42]
[1720835479524,16.0236,139.67,139.62,11.42]
[1720835480547,16.0236,139.67,139.63,11.42]
[1720835481839,11.42,139.66,139.57,20.0]
[1720835482026,11.42,139.66,139.6,11.42]
[1720835483333,11.42,139.66,139.54,20.0]
[1720835483536,11.42,139.65,139.6,11.42]
[1720835484523,11.42,139.65,139.55,45.0]
[1720835484850,11.42,139.65,139.59,11.42]
[1720835485142,17.4681,139.63,139.57,11.42]
[1720835485345,11.42,139.62,139.56,11.42]
[1720835487041,11.42,139.62,139.5,276.523]
[1720835487242,27.6491,139.61,139.56,11.42]
[1720835487438,27.6491,139.61,139.53,45.0]
[1720835487635,27.6491,139.61,139.56,11.42]
[1720835488445,27.6491,139.61,139.53,45.0]
[1720835488645,11.42,139.6,139.55,11.42]
[1720835489330,11.42,139.6,139.54,11.42]
[1720835489331,6.0481,139.59,139.54,11.42]
[1720835489536,6.0481,139.59,139.53,11.42]
[1720835489744,17.4681,139.59,139.53,11.42]
[1720835490049,17.4681,139.59,139.46,21.223]
[1720835490050,6.0481,139.59,139.54,11.42]
[1720835490944,6.0481,139.59,139.55,11.42]
[1720835492631,6.0481,139.59,139.54,11.42]
[1720835493237,6.0481,139.59,139.55,11.42]
[1720835493635,6.0481,139.59,139.56,11.42]
[1720835495148,6.0481,139.59,139.55,11.42]
[1720835497658,6.0481,139.59,139.46,24.05176899]
[1720835497857,6.0481,139.59,139.54,11.42]
[1720835500059,16.6019,139.58,139.47,46.65860257]
[1720835500262,16.6019,139.58,139.53,11.42]
[1720835501459,28.0219,139.58,139.53,11.42]
[1720835502158,28.0219,139.58,139.52,11.42]
[1720835502544,16.6019,139.58,139.55,11.42]
[1720835503162,16.6019,139.58,139.54,11.42]
[1720835503862,16.6019,139.58,139.55,11.42]
[1720835504062,16.6019,139.58,139.54,11.42]
[1720835508442,16.6019,139.58,139.52,11.42]
[1720835508665,16.6019,139.58,139.56,11.42]
[1720835509248,16.6019,139.58,139.57,11.42]
[1720835509647,16.6019,139.61,139.57,11.42]
[1720835509863,16.6019,139.61,139.59,11.42]
[1720835514061,16.6019,139.61,139.58,11.42]
[1720835518872,28.0219,139.61,139.53,45.0]
[1720835519074,28.0219,139.61,139.55,11.42]
[1720835519479,16.6019,139.61,139.56,11.42]
[1720835519784,28.0219,139.61,139.55,11.42]
[1720835520581,16.6019,139.61,139.56,11.42]
[1720835520983,28.0219,139.61,139.48,23.84198366]
[1720835521178,11.42,139.6,139.54,11.42]
[1720835521770,6.4431,139.58,139.49,2.31914243]
[1720835522067,15.2946,139.57,139.53,11.42]
[1720835523885,15.2946,139.57,139.49,1.65836476]
[1720835524079,15.2946,139.57,139.52,11.42]
[1720835524285,15.2946,139.57,139.49,1.65836476]
[1720835524596,15.2946,139.57,139.52,11.42]
[1720835525763,26.7146,139.57,139.52,11.42]
[1720835527287,15.2946,139.57,139.52,11.42]
[1720835528394,26.7146,139.57,139.49,1.65836476]
[1720835528684,26.7146,139.57,139.51,11.42]
[1720835529177,11.42,139.56,139.44,67.8635]
[1720835529366,15.2946,139.57,139.49,11.42]
[1720835529367,11.42,139.55,139.49,11.42]
[1720835530378,11.42,139.55,139.45,1.65884045]
[1720835530577,11.42,139.55,139.45,21.65884045]
[1720835530895,11.42,139.55,139.49,11.42]
[1720835532391,11.42,139.55,139.45,21.65884045]
[1720835532578,11.42,139.54,139.48,11.42]
[1720835532884,11.42,139.53,139.48,11.42]
[1720835533280,11.42,139.53,139.47,11.42]
[1720835533887,11.42,139.53,139.48,11.42]
[1720835534081,11.42,139.55,139.49,11.42]
[1720835537800,11.42,139.56,139.5,11.42]
[1720835538697,15.2946,139.57,139.49,11.42]
[1720835538698,11.42,139.55,139.49,11.42]
[1720835539400,11.42,139.55,139.46,45.0]
[1720835539602,11.42,139.55,139.49,11.42]
[1720835539903,11.42,139.55,139.5,11.42]
[1720835540498,11.42,139.55,139.45,46.65884045]
[1720835540797,11.42,139.55,139.49,11.42]
[1720835541100,11.42,139.56,139.5,11.42]
[1720835541283,15.2946,139.57,139.5,11.42]
[1720835541488,26.7146,139.57,139.51,11.42]
[1720835542401,15.2946,139.57,139.51,11.42]
[1720835542580,26.7146,139.57,139.51,11.42]
[1720835545505,11.42,139.56,139.51,11.42]
[1720835546498,15.2946,139.57,139.51,11.42]
[1720835546699,26.7146,139.57,139.51,11.42]
[1720835547398,15.2946,139.57,139.53,11.42]
[1720835549186,15.2946,139.57,139.46,1.43323471]
[1720835549392,15.2946,139.57,139.52,11.42]
[1720835549787,26.7146,139.57,139.46,1.43323471]
[1720835550004,26.7146,139.57,139.52,11.42]
[1720835551510,15.2946,139.57,139.52,11.42]
[1720835552212,15.2946,139.57,139.53,1.43251567]
[1720835552395,15.2946,139.57,139.47,1.43251567]
[1720835552592,26.7146,139.57,139.52,11.42]
[1720835552988,11.42,139.56,139.51,11.42]
[1720835553193,26.7146,139.57,139.52,1.4323173]
[1720835553407,26.7146,139.57,139.51,11.42]
[1720835553604,11.42,139.56,139.51,11.42]
[1720835554196,11.42,139.56,139.47,45.0]
[1720835554495,11.42,139.56,139.5,11.42]
[1720835555004,11.42,139.55,139.49,11.42]
[1720835555206,11.42,139.55,139.5,11.42]
[1720835555391,15.2946,139.57,139.5,11.42]
[1720835555588,11.42,139.56,139.5,11.42]
[1720835555892,15.2946,139.57,139.51,11.42]
[1720835555893,26.7146,139.57,139.51,11.42]
[1720835556202,11.42,139.56,139.5,11.42]
[1720835556404,15.2946,139.57,139.51,11.42]
[1720835556405,26.7146,139.57,139.51,11.42]
[1720835556783,11.42,139.56,139.51,11.42]
[1720835556987,11.42,139.56,139.45,1.65884045]
[1720835557201,11.42,139.56,139.51,11.42]
[1720835557395,11.42,139.56,139.5,11.42]
[1720835562297,11.42,139.56,139.45,66.65884045]
[1720835562506,11.42,139.56,139.5,11.42]
[1720835563894,11.42,139.55,139.49,11.42]
[1720835564393,11.42,139.55,139.45,66.65884045]
[1720835564598,11.42,139.54,139.49,11.42]
[1720835564907,11.42,139.54,139.45,66.65884045]
[1720835564908,11.42,139.55,139.5,11.42]
[1720835567012,11.42,139.55,139.49,11.42]
[1720835568417,11.42,139.53,139.45,66.65884045]
[1720835568602,11.42,139.53,139.47,11.42]
[1720835570505,11.42,139.52,139.45,1.65884045]
[1720835570836,11.42,139.52,139.46,11.42]
[1720835571503,11.42,139.52,139.4,9.51049914]
[1720835571708,11.42,139.52,139.46,11.42]
[1720835571904,11.42,139.51,139.41,1.65931641]
[1720835572105,11.42,139.51,139.45,11.42]
[1720835574431,11.42,139.51,139.41,46.65931641]
[1720835574598,11.42,139.51,139.45,11.42]
[1720835576029,11.42,139.51,139.46,11.42]
[1720835576213,11.42,139.52,139.46,11.42]
[1720835576413,11.42,139.52,139.47,11.42]
[1720835578198,11.42,139.52,139.46,11.42]
[1720835580228,11.42,139.51,139.41,46.65931641]
[1720835580441,11.42,139.51,139.46,11.42]
[1720835581433,11.42,139.51,139.42,20.0]
[1720835581741,11.42,139.51,139.45,11.42]
[1720835583827,12.9445364,139.56,139.45,11.42]
[1720835584133,11.42,139.53,139.47,11.42]
[1720835584541,12.9445364,139.56,139.47,11.42]
[1720835584744,11.42,139.53,139.47,11.42]
[1720835585853,10.0,139.58,139.47,11.42]
[1720835586024,65.0,139.57,139.48,11.42]
[1720835586227,11.42,139.54,139.48,11.42]
[1720835586636,65.0,139.57,139.48,11.42]
[1720835586830,11.42,139.54,139.48,11.42]
[1720835589751,45.0,139.57,139.44,11.42]
[1720835590042,11.42,139.54,139.49,11.42]
[1720835590749,45.0,139.57,139.49,11.42]
[1720835590930,11.42,139.55,139.49,11.42]
[1720835591242,11.42,139.54,139.45,65.0]
[1720835591451,11.42,139.54,139.48,11.42]
[1720835593554,11.42,139.54,139.45,65.0]
[1720835593740,11.42,139.54,139.48,11.42]
[1720835595643,11.42,139.53,139.48,11.42]
[1720835596352,11.42,139.53,139.47,11.42]
[1720835596940,11.42,139.53,139.48,11.42]
[1720835597431,11.42,139.53,139.45,65.0]
[1720835597631,11.42,139.53,139.48,11.42]
[1720835598151,11.42,139.53,139.47,11.42]
[1720835598655,20.0,139.56,139.47,11.42]
[1720835598953,11.42,139.53,139.47,11.42]
[1720835599634,20.0,139.56,139.47,11.42]
[1720835599834,11.42,139.53,139.47,11.42]
[1720835603750,20.0,139.56,139.47,11.42]
[1720835603943,11.42,139.53,139.47,11.42]
[1720835604336,11.42,139.54,139.48,11.42]
[1720835604544,20.0,139.55,139.48,11.42]
[1720835604839,11.42,139.54,139.48,11.42]
[1720835606958,11.42,139.54,139.49,11.42]
[1720835608336,11.42,139.54,139.45,45.0]
[1720835608542,11.42,139.54,139.48,11.42]
[1720835609165,11.42,139.54,139.45,45.0]
[1720835609462,11.42,139.53,139.47,11.42]
[1720835609768,11.42,139.52,139.46,11.42]
[1720835610274,11.42,139.52,139.47,11.42]
[1720835610645,11.42,139.52,139.45,45.0]
[1720835610850,11.42,139.52,139.46,11.42]
[1720835613785,11.42,139.52,139.45,45.0]
[1720835613991,11.42,139.52,139.46,11.42]
[1720835616198,11.42,139.52,139.45,45.0]
[1720835616398,11.42,139.52,139.46,11.42]
[1720835619066,11.42,139.52,139.47,1.43382412]
[1720835621100,11.42,139.52,139.46,12.85382368]
[1720835621402,11.42,139.51,139.46,1.43382368]
[1720835621589,11.42,139.5,139.41,1.65931641]
[1720835621771,11.42,139.5,139.45,11.42]
[1720835622377,30.0,139.55,139.45,11.42]
[1720835622603,11.42,139.5,139.45,11.42]
[1720835623384,45.0,139.54,139.44,11.42]
[1720835623598,11.42,139.5,139.44,11.42]
[1720835628413,11.42,139.5,139.45,11.42]
[1720835628784,11.42,139.51,139.46,11.42]
[1720835629485,10.0,139.57,139.47,11.42]
[1720835629715,11.42,139.53,139.47,11.42]
[1720835630791,11.42,139.53,139.41,1.65931641]
[1720835631112,11.42,139.53,139.47,11.42]
[1720835633927,11.42,139.5,139.39,20.0]
[1720835634096,11.42,139.5,139.44,11.42]
[1720835634426,11.42,139.5,139.45,11.42]
[1720835635416,11.42,139.49,139.39,21.65955449]
[1720835635625,11.42,139.49,139.4,45.0]
[1720835635920,11.42,139.49,139.43,11.42]
[1720835637444,11.42,139.48,139.43,11.42]
[1720835638012,11.42,139.49,139.43,11.42]
[1720835639116,10.0,139.54,139.43,11.42]
[1720835639424,11.42,139.49,139.44,11.42]
[1720835641426,11.42,139.5,139.44,11.42]
[1720835642248,55.0,139.56,139.46,11.42]
[1720835642423,11.42,139.51,139.46,11.42]
[1720835643437,11.42,139.51,139.45,11.42]
[1720835643832,11.42,139.51,139.46,11.42]
[1720835644036,11.42,139.52,139.46,11.42]
[1720835647317,11.42,139.52,139.47,11.42]
[1720835653347,11.42,139.52,139.46,11.42]
[1720835653838,11.42,139.52,139.47,11.42]
[1720835654037,11.42,139.52,139.39,46.65955449]
[1720835654242,11.42,139.52,139.47,11.42]
[1720835659650,11.42,139.52,139.46,11.42]
[1720835659944,10.0,139.56,139.46,11.42]
[1720835660148,11.42,139.51,139.46,11.42]
[1720835660334,11.42,139.52,139.46,11.42]
[1720835664253,11.42,139.52,139.45,11.42]
[1720835664649,11.42,139.5,139.44,11.42]
[1720835665129,11.42,139.5,139.45,11.42]
[1720835665333,11.42,139.51,139.46,11.42]
[1720835665530,45.0,139.55,139.46,11.42]
[1720835665749,11.42,139.52,139.47,11.42]
[1720835666052,11.42,139.53,139.47,11.42]
[1720835666460,45.0,139.55,139.47,11.42]
[1720835666665,20.0,139.54,139.47,11.42]
[1720835666956,11.42,139.53,139.47,11.42]
[1720835669338,11.42,139.52,139.47,11.42]
[1720835672654,20.0,139.54,139.47,11.42]
[1720835672854,11.42,139.52,139.47,11.42]
[1720835673935,11.42,139.52,139.4,1.65943544]
[1720835674135,11.42,139.52,139.46,11.42]
[1720835675667,30.0,139.54,139.45,21.6579]
[1720835675969,11.42,139.51,139.45,33.0779]
[1720835678665,11.42,139.51,139.45,21.6579]
[1720835678873,11.42,139.5,139.45,33.0779]
[1720835679052,11.42,139.51,139.45,33.0779]
[1720835679252,30.0,139.54,139.45,33.0779]
[1720835679563,11.42,139.51,139.46,11.42]
[1720835680157,20.0,139.54,139.46,11.42]
[1720835680346,11.42,139.52,139.46,11.42]
[1720835680559,11.42,139.52,139.46,11.91650057]
[1720835680959,11.42,139.52,139.46,11.42]
[1720835683069,11.42,139.51,139.45,33.0779]
[1720835683252,11.42,139.51,139.45,21.6579]
[1720835683453,11.42,139.49,139.45,21.6579]
[1720835685563,11.42,139.5,139.45,21.6579]
[1720835686357,11.42,139.51,139.45,33.0779]
[1720835686965,11.42,139.5,139.45,33.0779]
[1720835688172,15.9909,139.53,139.45,33.0779]
[1720835688376,11.42,139.5,139.45,21.6579]
[1720835693484,11.42,139.49,139.45,21.6579]
[1720835696865,11.42,139.49,139.43,11.42]
[1720835697585,11.42,139.49,139.41,22.1939]
[1720835697773,11.42,139.49,139.43,11.42]
[1720835698174,11.42,139.48,139.42,11.42]
[1720835700285,10.0,139.52,139.43,11.42]
[1720835700479,11.42,139.49,139.43,11.42]
[1720835703483,11.42,139.48,139.41,22.1939]
[1720835703694,11.42,139.48,139.42,11.42]
[1720835706588,11.42,139.48,139.41,22.1939]
[1720835706787,11.42,139.48,139.42,11.42]
[1720835707286,11.42,139.48,139.41,22.1939]
[1720835707595,11.42,139.45,139.41,22.1939]
[1720835709698,16.0315,139.49,139.41,35.04623854]
[1720835709899,11.42,139.47,139.41,35.04623854]
[1720835710795,11.42,139.47,139.41,33.6139]
[1720835712399,11.42,139.47,139.42,1.43182537]
[1720835715400,11.42,139.47,139.41,33.6139]
[1720835715599,16.0315,139.49,139.41,33.6139]
[1720835715799,11.42,139.48,139.43,11.42]
[1720835716607,11.42,139.48,139.42,12.85419055]
[1720835717004,11.42,139.48,139.42,11.42]
[1720835719001,11.42,139.47,139.41,22.1939]
[1720835719206,11.42,139.45,139.37,22.2607]
[1720835719592,11.42,139.45,139.39,11.42]
[1720835720394,11.42,139.45,139.4,11.42]
[1720835721211,11.42,139.45,139.37,22.2607]
[1720835721510,11.42,139.44,139.39,11.42]
[1720835721683,11.42,139.44,139.38,56.42]
[1720835723316,11.42,139.44,139.38,45.0]
[1720835723612,11.42,139.44,139.39,11.42]
[1720835723819,11.42,139.45,139.39,11.42]
[1720835724199,20.0,139.47,139.38,45.0]
[1720835724404,20.0,139.47,139.4,11.42]
[1720835724605,16.0315,139.49,139.42,11.42]
[1720835724789,27.4515,139.49,139.43,12.02109978]
[1720835724987,11.42,139.48,139.43,12.02109978]
[1720835725512,11.42,139.48,139.43,11.42]
[1720835725892,16.0315,139.49,139.43,11.42]
[1720835726093,11.42,139.49,139.43,11.42]
[1720835726398,11.42,139.49,139.44,11.42]
[1720835727018,26.00275693,139.52,139.44,11.42]
[1720835727219,11.42,139.49,139.44,11.42]
[1720835728702,11.42,139.49,139.43,11.42]
[1720835728904,11.42,139.48,139.43,11.42]
[1720835729315,11.42,139.48,139.42,11.42]
[1720835729915,11.42,139.48,139.41,21.4684]
[1720835730116,11.42,139.48,139.42,56.42]
[1720835731119,11.42,139.47,139.42,56.42]
[1720835731420,11.42,139.47,139.42,11.42]
[1720835731600,11.42,139.47,139.41,32.8884]
[1720835732022,11.42,139.47,139.42,11.42]
[1720835732999,11.42,139.47,139.41,32.8884]
[1720835733617,11.42,139.47,139.42,1.43433659]
[1720835734121,11.42,139.47,139.41,32.8884]
[1720835736828,11.42,139.46,139.37,21.4684]
[1720835737007,11.42,139.45,139.39,11.42]
[1720835737208,11.42,139.45,139.4,12.20246773]
[1720835737430,11.42,139.46,139.4,12.20246773]
[1720835737606,16.6319,139.48,139.4,12.20246773]
[1720835737807,11.42,139.46,139.4,11.42]
[1720835738629,11.42,139.46,139.41,11.42]
[1720835741326,11.42,139.47,139.41,11.42]
[1720835741829,9.71218295,139.47,139.41,11.42]
[1720835744035,11.42,139.46,139.4,11.42]
[1720835744217,11.42,139.46,139.41,11.42]
[1720835744730,16.6319,139.48,139.41,11.42]
[1720835744918,11.42,139.47,139.41,11.42]
[1720835745813,16.6319,139.48,139.41,11.42]
[1720835746018,11.42,139.47,139.41,11.42]
[1720835752740,16.6319,139.48,139.42,1.43249711]
[1720835753048,11.42,139.47,139.42,1.43249711]
[1720835753342,28.0519,139.48,139.42,12.85249711]
[1720835753645,28.0519,139.48,139.42,11.42]
[1720835754144,28.0519,139.48,139.41,11.42]
[1720835754445,11.42,139.47,139.41,11.42]
[1720835760359,15.5825,139.51,139.42,11.42]
[1720835760659,15.5825,139.51,139.44,11.42]
[1720835760957,11.42,139.48,139.41,21.5106]
[1720835761133,11.42,139.48,139.42,11.42]
[1720835761335,11.42,139.47,139.42,11.42]
[1720835761728,15.5825,139.51,139.42,11.42]
[1720835761939,11.42,139.48,139.42,11.42]
[1720835762333,11.42,139.47,139.41,32.9306]
[1720835762951,11.42,139.48,139.42,11.42]
[1720835766350,11.42,139.49,139.43,11.42]
[1720835766551,11.42,139.49,139.43,12.02959593]
[1720835767553,11.42,139.49,139.44,0.68907876]
[1720835771249,11.42,139.49,139.44,1.15490213]
[1720835771450,11.42,139.49,139.44,12.57490213]
[1720835776858,11.42,139.5,139.45,11.42]
[1720835777038,11.42,139.5,139.46,1.15473696]
[1720835777238,11.42,139.5,139.45,11.42]
[1720835778459,27.0025,139.51,139.45,11.42]
[1720835781363,11.42,139.5,139.45,11.42]
[1720835787948,15.5825,139.51,139.45,11.42]
[1720835788147,11.42,139.5,139.45,11.42]
[1720835792886,11.42,139.49,139.43,11.42]
[1720835793971,11.42,139.48,139.42,11.42]
[1720835794487,11.42,139.49,139.43,11.42]
[1720835799488,11.42,139.49,139.44,0.49667145]
[1720835801490,11.42,139.49,139.44,1.43412702]
[1720835802893,15.5825,139.51,139.43,11.42]
[1720835803097,15.5825,139.51,139.46,11.42]
[1720835803592,15.5825,139.51,139.44,45.0]
[1720835803890,15.5825,139.51,139.46,11.42]
[1720835805084,15.5825,139.51,139.44,45.0]
[1720835805391,15.5825,139.51,139.46,11.42]
[1720835806984,15.5825,139.51,139.44,45.0]
[1720835807186,15.5825,139.51,139.46,11.42]
[1720835809592,27.0025,139.51,139.46,11.42]
[1720835813318,15.5825,139.51,139.46,11.42]
[1720835813778,15.5825,139.51,139.47,1.42915914]
[1720835813979,27.0025,139.51,139.46,11.42]
[1720835816601,15.8971,139.54,139.46,11.42]
[1720835816900,11.42,139.52,139.46,11.42]
[1720835817280,20.0,139.53,139.46,11.42]
[1720835817479,31.42,139.53,139.47,11.42]
[1720835817680,11.42,139.53,139.47,11.42]
[1720835818208,15.8971,139.54,139.46,11.42]
[1720835818392,11.42,139.52,139.46,11.42]
[1720835819880,11.42,139.52,139.44,45.0]
[1720835820081,11.42,139.51,139.45,11.42]
[1720835822201,11.42,139.51,139.44,45.0]
[1720835822499,11.42,139.51,139.45,11.42]
[1720835822703,27.215,139.5,139.41,15.4283]
[1720835822908,11.42,139.49,139.42,45.0]
[1720835823088,11.42,139.49,139.43,11.42]
[1720835823981,11.42,139.49,139.42,45.0]
[1720835824181,11.42,139.49,139.43,11.42]
[1720835824611,11.42,139.49,139.44,11.42]
[1720835826511,27.215,139.5,139.44,11.42]
[1720835826687,27.215,139.5,139.45,11.42]
[1720835827091,15.795,139.5,139.45,11.42]
[1720835827289,15.795,139.5,139.46,11.42]
[1720835833417,15.795,139.5,139.45,11.42]
[1720835837615,15.795,139.5,139.46,11.42]
[1720835838317,15.795,139.5,139.45,11.42]
[1720835839496,27.215,139.5,139.42,45.0]
[1720835840029,27.215,139.5,139.44,11.42]
[1720835840226,27.215,139.5,139.45,11.42]
[1720835841430,15.795,139.5,139.45,11.42]
[1720835842019,15.795,139.5,139.46,11.42]
[1720835845421,15.795,139.5,139.45,11.42]
[1720835851333,15.795,139.5,139.42,45.0]
[1720835851511,15.795,139.5,139.43,20.0]
[1720835851711,15.795,139.5,139.44,11.42]
[1720835852131,15.795,139.5,139.45,11.42]
[1720835853433,15.795,139.5,139.46,11.42]
[1720835853642,15.795,139.5,139.48,11.42]
[1720835853842,15.795,139.5,139.47,11.42]
[1720835855422,15.795,139.5,139.46,11.42]
[1720835855624,15.795,139.5,139.47,1.43166862]
[1720835857942,15.795,139.5,139.46,11.42]
[1720835860539,15.795,139.5,139.43,20.0]
[1720835860847,15.795,139.5,139.45,11.42]
[1720835864322,15.795,139.5,139.46,11.42]
[1720835871342,15.795,139.5,139.43,1.43396262]
[1720835871540,15.795,139.5,139.43,46.43396262]
[1720835871835,15.795,139.5,139.45,11.42]
[1720835874441,15.795,139.5,139.43,46.43396262]
[1720835874641,15.795,139.5,139.45,11.42]
[1720835875042,15.795,139.5,139.46,11.42]